bitfinex-derivatives/quotes_ETHF0:USTF0_20250727
["timestamp","ask_amount","ask_price","bid_price","bid_amount"]
[1753576521997,22.76993,3752.2,3752.1,1.2783]
[1753576522299,22.76993,3752.2,3752.1,0.5964]
[1753576522895,22.76993,3752.2,3751.8,0.4529]
[1753576522896,0.53286,3752.0,3751.9,0.4529]
[1753576523095,1.39596,3752.0,3751.9,0.2924]
[1753576524700,0.9649,3751.7,3751.6,1.1348]
[1753576524900,22.5111,3751.7,3751.6,1.7312]
[1753576526517,22.739,3751.7,3751.6,1.2783]
[1753576526702,25.9468,3751.7,3751.6,0.2924]
[1753576526902,0.96493,3751.5,3751.4,0.5964]
[1753576527199,1.39603,3751.5,3751.4,0.5964]
[1753576527407,0.2057,3750.8,3750.7,0.2056]
[1753576527597,22.75223,3750.8,3750.7,0.9536]
[1753576527797,22.52373,3750.8,3750.7,1.7617]
[1753576528307,22.52373,3750.8,3750.7,2.29474]
[1753576528509,21.8105,3750.8,3750.7,2.29474]
[1753576528808,21.7714,3750.8,3750.7,2.29474]
[1753576529007,21.5781,3750.8,3750.7,2.29474]
[1753576529410,22.11113,3750.8,3750.7,2.29474]
[1753576529910,21.5781,3750.8,3750.7,2.29474]
[1753576530112,22.11113,3750.8,3750.7,2.29474]
[1753576530810,22.11113,3750.8,3750.7,1.7617]
[1753576531011,22.11113,3750.8,3750.7,2.29474]
[1753576531012,21.5781,3750.8,3750.7,2.29474]
[1753576532010,22.11113,3750.8,3750.7,2.29474]
[1753576533611,22.52373,3750.8,3750.7,1.7617]
[1753576534002,22.75223,3750.8,3750.7,1.7617]
[1753576534707,22.75223,3750.8,3750.7,0.3054]
[1753576535006,38.92295,3751.4,3751.3,0.2056]
[1753576535213,59.734,3751.4,3751.3,2.29466]
[1753576535511,60.26694,3751.4,3751.3,2.29466]
[1753576535710,38.39,3751.4,3751.3,2.29466]
[1753576535901,0.1802,3752.0,3751.3,1.0544]
[1753576536105,0.53284,3752.2,3752.0,1.24016]
[1753576536405,22.08801478,3752.1,3752.0,2.29456]
[1753576536806,22.62085478,3752.1,3752.0,1.7617]
[1753576537012,23.26355478,3752.1,3752.0,1.7617]
[1753576537212,22.53154,3752.1,3752.0,1.7617]
[1753576538816,21.356,3752.1,3752.0,2.29456]
[1753576539115,21.88884,3752.1,3752.0,2.29456]
[1753576539310,21.356,3752.1,3752.0,2.29456]
[1753576540111,22.53154,3752.1,3752.0,1.7617]
[1753576540307,21.5617,3752.1,3752.0,2.29456]
[1753576540507,38.4164,3752.5,3752.4,0.7073]
[1753576540713,59.743,3752.5,3752.4,2.2945]
[1753576541413,60.27579,3752.5,3752.4,1.7617]
[1753576542820,60.30019,3752.5,3752.4,1.7617]
[1753576543021,60.48039,3752.5,3752.4,1.7617]
[1753576544114,63.91669,3752.5,3752.4,1.7617]
[1753576545620,63.91669,3752.5,3752.4,1.3215]
[1753576545813,63.91669,3752.5,3752.4,0.3054]
[1753576546219,60.70889,3752.5,3752.4,0.3054]
[1753576546421,60.70889,3752.5,3752.4,1.7617]
[1753576549015,60.48039,3752.5,3752.4,1.7617]
[1753576550824,60.70889,3752.5,3752.4,1.3215]
[1753576552727,60.70889,3752.5,3752.4,0.3054]
[1753576553031,1.40402,3752.3,3752.2,0.6142]
[1753576553331,22.72902,3752.3,3752.2,0.3054]
[1753576553529,22.72902,3752.3,3752.0,3.5166]
[1753576553530,0.8712,3752.1,3752.0,0.3054]
[1753576553736,1.17559,3751.8,3751.7,1.7617]
[1753576554032,22.49859,3751.8,3751.7,1.7617]
[1753576554734,21.7855,3751.8,3751.7,1.7617]
[1753576554933,3.2078,3752.4,3752.3,0.7073]
[1753576554934,4.1396,3752.4,3752.3,0.7073]
[1753576555134,3.7406,3752.4,3752.3,1.7617]
[1753576555433,25.0696,3752.4,3752.3,1.7617]
[1753576556333,3.7406,3752.4,3752.3,1.7617]
[1753576556530,25.0736,3752.4,3752.3,1.7617]
[1753576557233,25.0736,3752.4,3752.3,2.29452]
[1753576558737,25.0736,3752.4,3752.3,1.7617]
[1753576558929,25.0736,3752.4,3752.3,2.29452]
[1753576559635,21.333,3752.4,3752.3,2.29452]
[1753576561339,0.53278,3752.6,3752.5,2.26049]
[1753576561541,21.85678,3752.6,3752.5,2.26049]
[1753576562233,21.85478,3752.6,3752.5,1.7277]
[1753576562433,22.08418,3752.6,3752.5,1.7277]
[1753576562634,22.50368,3752.6,3752.5,1.7277]
[1753576562832,22.50168,3752.6,3752.5,1.7277]
[1753576563836,0.7345,3752.4,3752.3,3.2078]
[1753576564039,1.18176,3752.0,3751.9,1.7277]
[1753576564234,22.72756,3752.0,3751.9,1.7277]
[1753576564433,22.72756,3752.0,3751.9,1.301]
[1753576565042,22.72756,3752.0,3751.9,0.3002]
[1753576565339,22.72756,3752.0,3750.2,1.35142542]
[1753576565340,0.97813,3751.5,3751.4,0.3002]
[1753576565538,22.73363,3751.5,3751.4,0.3002]
[1753576565741,22.73363,3751.5,3751.4,0.6104]
[1753576567241,22.73363,3751.5,3751.4,1.7277]
[1753576567435,22.73363,3751.5,3751.4,1.301]
[1753576568740,22.73363,3751.5,3751.4,0.8933]
[1753576568941,1.1456,3751.0,3750.9,4.9355]
[1753576569139,22.4666,3751.0,3750.9,4.9355]
[1753576569339,21.321,3751.0,3750.9,5.46852]
[1753576572538,22.506,3751.0,3750.9,4.9355]
[1753576572735,22.7346,3751.0,3750.6,0.7369]
[1753576572949,1.41364,3750.7,3750.6,1.0008]
[1753576573239,0.2411,3750.5,3750.4,1.0008]
[1753576573441,1.41367,3750.5,3750.4,1.7277]
[1753576573642,1.18507,3750.5,3750.4,1.7277]
[1753576574845,0.652,3750.5,3750.4,1.7277]
[1753576575041,1.18507,3750.5,3750.4,1.7277]
[1753576575544,1.18507,3750.5,3750.4,2.26079]
[1753576575545,0.652,3750.5,3750.4,2.26079]
[1753576575744,0.206,3750.5,3750.4,2.26079]
[1753576575941,21.311,3750.7,3750.4,1.7277]
[1753576576143,21.9236,3750.7,3750.6,0.6906]
[1753576576448,3.2078,3751.0,3750.9,1.7277]
[1753576576449,0.652,3751.0,3750.9,1.7277]
[1753576576649,21.961,3751.0,3750.9,1.7277]
[1753576577049,22.494,3751.0,3750.9,1.7277]
[1753576578060,22.7226,3751.0,3750.9,1.7277]
[1753576578749,0.98014,3750.7,3750.6,1.4275]
[1753576578955,1.41369,3750.4,3750.3,1.1]
[1753576579149,0.5331,3750.3,3750.2,0.01866542]
[1753576579356,1.4137,3750.3,3750.2,0.31886542]
[1753576580151,1.4137,3750.3,3750.2,0.01866542]
[1753576581355,1.4137,3750.3,3750.2,1.31966542]
[1753576581550,0.206,3750.3,3750.2,1.74636542]
[1753576581744,21.309,3750.3,3750.2,2.27946542]
[1753576581946,0.53304,3750.7,3750.5,0.6906]
[1753576582153,21.327,3750.6,3750.5,0.6906]
[1753576582355,0.0246,3750.9,3750.8,0.6906]
[1753576582654,21.86302,3750.9,3750.8,1.7277]
[1753576583261,22.51502,3750.9,3750.8,1.7277]
[1753576583652,21.982,3750.9,3750.8,1.7277]
[1753576583859,21.536,3750.9,3750.8,1.7277]
[1753576584060,21.536,3750.9,3750.8,2.26073]
[1753576584463,21.33,3750.9,3750.8,2.26073]
[1753576585261,3.6549,3751.2,3751.1,1.7277]
[1753576585457,25.51687,3751.2,3751.1,1.7277]
[1753576585662,25.31517,3751.2,3751.1,1.7277]
[1753576586064,24.7822,3751.2,3751.1,1.7277]
[1753576586266,25.27577,3751.2,3751.1,1.7277]
[1753576586861,3.2078,3751.2,3751.1,2.26069]
[1753576587066,24.5418,3751.2,3751.1,2.26069]
[1753576587562,0.53302,3750.9,3750.8,0.7619]
[1753576587768,22.51042,3750.9,3750.8,1.7508]
[1753576588068,22.73842,3750.9,3750.8,1.7508]
[1753576588267,22.51042,3750.9,3750.8,1.7508]
[1753576591064,0.53296,3751.3,3751.2,1.2522]
[1753576591264,21.87296,3751.3,3751.2,1.7508]
[1753576593468,22.07606,3751.3,3751.2,1.7508]
[1753576594174,0.53296,3751.3,3751.2,1.7508]
[1753576594471,21.87296,3751.3,3751.2,1.7508]
[1753576597176,0.53296,3751.3,3751.2,1.7508]
[1753576597377,21.86496,3751.3,3751.2,1.7508]
[1753576597671,22.73636,3751.3,3751.2,0.7995]
[1753576597871,1.1764,3751.0,3750.9,1.7508]
[1753576598068,22.7324,3751.0,3750.9,1.3008]
[1753576598276,22.7324,3751.0,3750.9,0.307]
[1753576598975,1.17644,3750.7,3750.6,0.4986]
[1753576599175,22.73344,3750.7,3750.6,1.7508]
[1753576599368,22.50544,3750.7,3750.6,1.7508]
[1753576601478,22.73344,3750.7,3750.6,1.7508]
[1753576602573,0.53309,3750.4,3750.3,3.9697]
[1753576602772,1.4045,3750.3,3750.2,0.32566542]
[1753576604576,1.4045,3750.3,3750.2,0.01866542]
[1753576607279,1.4045,3750.3,3750.2,1.76946542]
[1753576607280,1.1765,3750.3,3750.2,1.76946542]
[1753576608081,1.4045,3750.3,3750.2,1.76946542]
[1753576609481,1.4045,3750.3,3750.2,1.31946542]
[1753576609682,1.4045,3750.3,3750.2,0.32566542]
[1753576611880,1.4045,3750.3,3750.2,0.01866542]
[1753576614283,1.4045,3750.3,3750.2,0.63756542]
[1753576614484,22.4885,3750.3,3750.2,1.76946542]
[1753576617687,22.717,3750.3,3750.2,1.31946542]
[1753576617885,22.717,3750.3,3749.9,0.3122]
[1753576617886,1.46394,3750.0,3749.9,0.3122]
[1753576618086,1.46394,3750.0,3749.6,0.4368]
[1753576618087,0.53329,3749.0,3748.9,3.9096]
[1753576618792,0.1985,3749.9,3749.8,1.4337]
[1753576619093,0.53316,3749.9,3749.8,1.4337]
[1753576619289,21.84016,3749.9,3749.8,1.4337]
[1753576619883,0.53316,3749.9,3749.8,1.4337]
[1753576620089,21.84116,3749.9,3749.8,1.7411]
[1753576620290,21.84016,3749.9,3749.8,1.7411]
[1753576620693,41.6118,3750.4,3750.3,0.7018]
[1753576620897,63.46389,3750.4,3750.3,1.7411]
[1753576621090,3.2078,3750.4,3750.3,2.2742]
[1753576621284,24.5318,3750.4,3750.3,2.2742]
[1753576621497,24.5318,3750.4,3750.3,1.7411]
[1753576621795,25.06489,3750.4,3750.3,2.2742]
[1753576621996,24.5288,3750.4,3750.3,2.2742]
[1753576622393,21.321,3750.4,3750.3,2.2742]
[1753576622793,21.85409,3750.4,3750.3,2.2742]
[1753576622986,21.85409,3750.4,3750.3,1.7411]
[1753576624194,21.85409,3750.4,3750.3,2.2742]
[1753576624394,21.321,3750.4,3750.3,2.2742]
[1753576624789,21.85409,3750.4,3750.3,2.2742]
[1753576625295,3.5249,3750.9,3750.2,3.2078]
[1753576625296,0.53308,3750.5,3750.4,2.27419]
[1753576625496,21.84908,3750.5,3750.4,1.7411]
[1753576625890,0.53306,3750.6,3750.4,2.27419]
[1753576626098,0.53305,3750.7,3750.6,1.0393]
[1753576626299,21.84205,3750.7,3750.6,1.7411]
[1753576627993,22.04055,3750.7,3750.6,1.7411]
[1753576628392,22.73375,3750.7,3750.6,1.7411]
[1753576628800,22.55355,3750.7,3750.6,1.7411]
[1753576629199,22.04055,3750.7,3750.6,1.7411]
[1753576630300,21.84205,3750.7,3750.6,2.27416]
[1753576630499,21.84205,3750.7,3750.6,1.7411]
[1753576631202,21.84205,3750.7,3750.6,2.27416]
[1753576631403,21.84205,3750.7,3750.6,1.7411]
[1753576631591,22.73375,3750.7,3750.6,1.7411]
[1753576631791,22.77285,3750.7,3750.6,1.7411]
[1753576633701,1.46099,3750.4,3750.3,1.7411]
[1753576634003,21.4905,3750.4,3750.3,2.2742]
[1753576634399,22.02359,3750.4,3750.3,1.7411]
[1753576634799,22.02359,3750.4,3750.3,2.2742]
[1753576635206,21.292,3750.4,3750.3,2.2742]
[1753576635703,21.82509,3750.4,3750.3,2.2742]
[1753576636205,21.292,3750.4,3750.3,2.2742]
[1753576637106,21.4905,3750.4,3750.3,2.2742]
[1753576638710,22.02359,3750.4,3750.3,2.2742]
[1753576639909,21.292,3750.4,3750.3,2.2742]
[1753576640704,0.0235,3750.7,3750.5,0.53307]
[1753576640909,0.73151,3751.0,3750.9,0.7018]
[1753576641209,22.00851,3751.0,3750.9,1.0092]
[1753576641408,22.00851,3751.0,3750.9,1.7411]
[1753576641609,22.00851,3751.0,3750.9,4.9489]
[1753576642005,22.03201,3751.0,3750.9,4.9489]
[1753576642309,22.00851,3751.0,3750.9,4.9489]
[1753576642898,22.03201,3751.0,3750.9,4.9489]
[1753576643104,22.73791,3751.0,3750.9,4.9489]
[1753576645706,22.73791,3751.0,3750.9,1.7411]
[1753576646508,22.73791,3751.0,3750.9,0.9969]
[1753576646808,0.96513,3750.8,3750.7,1.4337]
[1753576647008,1.46093,3750.8,3750.7,1.7411]
[1753576652615,1.46093,3750.8,3750.7,2.27414]
[1753576652616,0.9279,3750.8,3750.7,2.27414]
[1753576652818,1.46093,3750.8,3750.7,1.7411]
[1753576654718,0.98077,3750.5,3750.4,4.6659]
[1753576654917,1.49247,3750.5,3750.4,4.6659]
[1753576655418,1.49247,3750.5,3750.4,4.9728]
[1753576657613,1.49247,3750.5,3750.4,4.6669]
[1753576657816,1.49247,3750.5,3750.4,3.9938]
[1753576658017,1.49247,3750.5,3750.4,3.2078]
[1753576658822,1.49247,3750.5,3750.4,4.9728]
[1753576663215,0.98081,3750.2,3750.1,1.765]
[1753576663420,22.76451,3750.2,3750.1,1.765]
[1753576664421,22.76451,3750.2,3750.1,0.786]
[1753576664620,22.76451,3750.2,3750.1,0.5921]
[1753576664919,1.18534,3750.0,3749.9,1.765]
[1753576665116,1.49257,3749.8,3749.7,1.4591]
[1753576665317,22.76457,3749.8,3749.7,1.4591]
[1753576666518,0.5332,3749.6,3749.5,0.3059]
[1753576666725,1.4926,3749.6,3749.5,1.3683]
[1753576666924,1.4926,3749.6,3749.5,1.5622]
[1753576667119,1.4926,3749.6,3749.5,1.765]
[1753576670625,1.4926,3749.6,3749.5,0.3069]
[1753576670825,1.18543,3749.4,3749.3,0.9494]
[1753576671021,22.76763,3749.4,3749.3,1.4581]
[1753576671420,22.76763,3749.4,3749.3,0.5921]
[1753576671826,22.76763,3749.4,3749.3,1.0624]
[1753576672023,22.76763,3749.4,3749.3,1.5622]
[1753576672225,22.76763,3749.4,3749.3,1.765]
[1753576673729,22.76763,3749.4,3749.3,0.786]
[1753576674324,22.76763,3749.4,3749.3,1.2563]
[1753576674525,22.76763,3749.4,3749.3,1.5622]
[1753576674727,22.76763,3749.4,3749.3,1.765]
[1753576676637,22.76763,3749.4,3749.3,0.2852]
[1753576676833,1.49269,3749.0,3748.9,1.3683]
[1753576677132,22.76869,3749.0,3748.9,1.0624]
[1753576677331,22.76869,3749.0,3748.9,0.5921]
[1753576677631,1.47481,3748.8,3748.7,1.7492]
[1753576679333,0.53329,3749.0,3748.9,1.7307]
[1753576679536,21.80929,3749.0,3748.9,1.7307]
[1753576680325,1.33296,3749.8,3749.2,1.22576]
[1753576680326,0.53323,3749.5,3749.2,1.22576]
[1753576680530,1.058,3749.6,3749.5,1.7307]
[1753576680828,22.0207,3749.6,3749.5,1.7307]
[1753576681631,0.53324,3749.3,3749.2,1.419]
[1753576681829,22.75274,3749.3,3749.2,0.6016]
[1753576682334,22.75274,3749.3,3749.2,1.5269]
[1753576682530,22.75274,3749.3,3749.2,1.2405]
[1753576682733,22.75274,3749.3,3749.2,0.8004]
[1753576682931,1.47479,3749.0,3748.9,1.419]
[1753576683126,0.97913,3748.7,3748.6,1.419]
[1753576683333,22.75283,3748.7,3748.6,1.7307]
[1753576684638,0.97916,3748.5,3748.4,0.8004]
[1753576684937,1.47486,3748.5,3748.4,0.8004]
[1753576685139,0.9792,3748.2,3748.1,4.212]
[1753576685438,22.2205,3748.2,3748.1,4.9385]
[1753576685639,22.0219,3748.2,3748.1,4.9385]
[1753576688440,1.03333,3748.7,3748.6,1.7307]
[1753576688634,0.74283,3748.7,3748.6,1.7307]
[1753576688838,0.53333,3748.8,3748.7,2.26403]
[1753576689039,21.81333,3748.8,3748.7,1.7307]
[1753576689341,21.28,3748.8,3748.7,2.26403]
[1753576689540,21.81331,3748.8,3748.7,2.26403]
[1753576690836,21.81331,3748.8,3748.7,1.7307]
[1753576691249,21.81331,3748.8,3748.7,2.26403]
[1753576691833,1.4295,3749.5,3749.4,0.6925]
[1753576692038,22.8899,3749.5,3749.4,1.7307]
[1753576692341,1.02861,3749.5,3749.4,1.7307]
[1753576692542,21.81521,3749.5,3749.4,1.7307]
[1753576693339,21.81521,3749.5,3749.4,2.26393]
[1753576693538,21.81521,3749.5,3749.4,1.7307]
[1753576693938,22.02471,3749.5,3749.4,1.7307]
[1753576694743,22.47161,3749.5,3749.4,1.7307]
[1753576699547,23.04801,3749.5,3749.4,1.7307]
[1753576699747,23.42511,3749.5,3749.4,1.7307]
[1753576700846,2.14311,3749.5,3749.4,1.7307]
[1753576701046,23.42011,3749.5,3749.4,1.7307]
[1753576701245,0.6921,3749.2,3749.1,1.0382]
[1753576701443,21.9691,3749.2,3748.8,6.3152]
[1753576701753,1.6097,3748.9,3748.8,7.54101]
[1753576701947,21.7724,3748.9,3748.8,7.54101]
[1753576702242,21.277,3748.9,3748.8,7.54101]
[1753576702439,0.53326,3749.2,3749.0,0.53327]
[1753576702751,1.139,3749.7,3749.6,0.6925]
[1753576703046,23.41989,3749.7,3749.6,1.7307]
[1753576703444,22.8867,3749.7,3749.6,2.2639]
[1753576703747,22.8867,3749.7,3749.6,1.7307]
[1753576703748,23.41989,3749.7,3749.6,1.7307]
[1753576705053,22.8867,3749.7,3749.6,1.7307]
[1753576705348,22.8867,3749.7,3749.6,2.2639]
[1753576705848,23.41989,3749.7,3749.6,2.2639]
[1753576706044,23.41989,3749.7,3749.6,1.7307]
[1753576706848,23.41989,3749.7,3749.6,2.2639]
[1753576707152,22.8867,3749.7,3749.6,2.2639]
[1753576708658,23.41989,3749.7,3749.6,2.2639]
[1753576709257,22.94919,3749.7,3749.6,2.2639]
[1753576709462,22.416,3749.7,3749.6,2.2639]
[1753576709760,22.7264,3749.7,3749.6,2.2639]
[1753576709951,0.53318,3749.8,3749.4,3.2078]
[1753576709952,1.0821,3750.0,3749.9,1.03996]
[1753576710148,22.5545,3750.0,3749.9,2.26736]
[1753576711054,23.08764,3750.0,3749.9,2.26736]
[1753576711355,23.08764,3750.0,3749.9,1.7342]
[1753576711556,0.8068,3750.0,3749.9,2.26736]
[1753576711761,38.403,3750.1,3750.0,1.24694]
[1753576711955,59.679,3750.1,3750.0,2.26734]
[1753576712358,60.68383,3750.1,3750.0,2.26734]
[1753576712558,61.17443,3750.1,3750.0,2.26734]
[1753576713349,23.47563,3750.1,3750.0,1.0204]
[1753576713549,23.47563,3750.1,3750.0,0.5915]
[1753576713958,23.47563,3750.1,3750.0,1.7342]
[1753576715159,2.19963,3750.1,3750.0,1.7342]
[1753576715460,23.47463,3750.1,3750.0,1.7342]
[1753576715660,1.54764,3750.7,3750.6,1.4456]
[1753576715959,22.82264,3750.7,3750.6,1.7342]
[1753576716160,23.29434,3750.7,3750.6,1.7342]
[1753576716664,2.19959,3750.4,3750.3,0.2886]
[1753576716864,23.47559,3750.4,3750.3,0.2886]
[1753576717165,23.47559,3750.4,3750.3,0.5915]
[1753576717358,23.47559,3750.4,3750.3,1.7342]
[1753576717759,23.47559,3750.4,3750.3,1.0024]
[1753576718256,23.47559,3750.4,3750.3,0.2886]
[1753576718465,1.6665,3750.0,3749.8,3.2078]
[1753576718666,1.2374,3749.6,3749.5,0.3029]
[1753576718865,23.2985,3749.6,3749.5,0.5915]
[1753576719165,23.4787,3749.6,3749.5,0.5915]
[1753576719460,22.9455,3749.6,3749.3,0.4289]
[1753576719654,1.23743,3749.4,3749.3,1.1427]
[1753576719862,23.47973,3749.4,3749.3,1.7342]
[1753576725973,1.23746,3749.2,3749.1,3.9021]
[1753576726173,22.9415,3749.2,3749.1,5.47527]
[1753576726774,23.47476,3749.2,3749.1,5.47527]
[1753576727671,23.47476,3749.2,3749.1,4.942]
[1753576728370,22.9415,3749.2,3749.1,5.47527]
[1753576728968,22.4509,3749.2,3749.1,5.47527]
[1753576731672,21.4714,3749.2,3749.1,5.47527]
[1753576732275,21.9431,3749.2,3749.1,5.47527]
[1753576732577,22.5535,3749.2,3749.1,5.47527]
[1753576732778,23.47476,3749.2,3749.1,5.47527]
[1753576734278,22.9415,3749.2,3749.1,5.47527]
[1753576734478,21.4714,3749.2,3749.1,5.47527]
[1753576734678,21.275,3749.2,3749.1,5.47527]
[1753576735473,0.53316,3749.9,3749.8,0.53316]
[1753576735680,22.47726,3749.9,3749.8,2.26736]
[1753576736178,21.9441,3749.9,3749.8,2.26736]
[1753576737176,0.6681,3749.9,3749.8,2.26736]
[1753576737376,21.4724,3749.9,3749.8,2.26736]
[1753576737577,21.925,3749.9,3749.8,2.26736]
[1753576737778,22.215,3749.9,3749.8,2.26736]
[1753576738076,22.5037,3749.9,3749.8,2.26736]
[1753576738278,23.03686,3749.9,3749.8,2.26736]
[1753576738684,22.8893,3749.9,3749.8,5.47516]
[1753576739479,22.7091,3749.9,3749.8,5.47516]
[1753576740083,23.42246,3749.9,3749.8,4.942]
[1753576740686,23.42246,3749.9,3749.8,5.47517]
[1753576741783,23.42246,3749.9,3749.8,4.2102]
[1753576741986,23.42246,3749.9,3749.8,3.2078]
[1753576742487,23.42246,3749.9,3749.8,3.5078]
[1753576742682,23.42246,3749.9,3749.8,4.9959]
[1753576743681,0.6328,3750.2,3750.1,0.53313]
[1753576743989,21.4742,3750.2,3750.1,2.32123]
[1753576748893,21.9268,3750.2,3750.1,2.32123]
[1753576749592,22.2168,3750.2,3750.1,2.32123]
[1753576751894,1.123,3750.5,3750.4,2.32119]
[1753576752103,22.393,3750.5,3750.4,5.52899]
[1753576752293,21.4702,3750.5,3750.4,5.52899]
[1753576752490,21.27,3750.5,3750.4,5.52899]
[1753576752794,22.6817,3750.8,3750.7,1.25834]
[1753576752997,22.8871,3750.8,3750.7,2.32114]
[1753576754191,0.53299,3751.1,3750.9,2.32112]
[1753576754192,0.2002,3751.0,3750.9,2.32112]
[1753576754391,0.2002,3751.0,3750.9,5.52892]
[1753576756799,0.5329,3751.8,3751.0,1.0628]
[1753576756996,23.419,3751.7,3751.6,1.7881]
[1753576757497,22.8861,3751.7,3751.6,2.32102]
[1753576757898,23.419,3751.7,3751.6,1.7881]
[1753576758099,23.419,3751.7,3751.6,1.3345]
[1753576758497,23.419,3751.7,3751.6,1.0253]
[1753576759298,23.419,3751.7,3751.6,1.55822]
[1753576760195,22.8861,3751.7,3751.6,1.86742]
[1753576760398,22.4159,3751.7,3751.6,2.32102]
[1753576760695,21.4692,3751.7,3751.6,2.32102]
[1753576760899,22.6807,3751.7,3751.6,2.32102]
[1753576761300,22.8861,3751.7,3751.6,2.32102]
[1753576763698,22.7059,3751.7,3751.6,2.32102]
[1753576763898,22.2105,3751.7,3751.6,2.32102]
[1753576764598,22.5005,3751.7,3751.6,2.32102]
[1753576765900,1.4117,3751.7,3751.6,2.32102]
[1753576766100,1.6171,3751.7,3751.6,2.32102]
[1753576769402,1.6171,3751.7,3751.3,3.2078]
[1753576769605,0.494,3751.4,3751.3,4.04656]
[1753576769803,1.6247,3751.4,3751.3,4.34586]
[1753576770104,1.6247,3751.4,3751.3,5.47836]
[1753576770904,21.454,3751.6,3751.3,4.1399]
[1753576771104,0.698,3751.4,3751.3,4.23935]
[1753576771505,1.6247,3751.4,3751.3,5.47835]
[1753576774005,22.4057,3751.6,3751.5,1.4383]
[1753576774308,23.41962,3751.6,3751.5,0.8116]
[1753576774508,23.41962,3751.6,3751.5,0.3058]
[1753576774711,0.53294,3751.5,3751.4,0.53294]
[1753576774915,2.15764,3751.5,3751.4,0.53294]
[1753576775112,2.15764,3751.5,3751.4,1.13804]
[1753576775412,2.15764,3751.5,3751.4,2.27054]
[1753576776008,2.15764,3751.5,3751.4,1.7376]
[1753576776315,2.15764,3751.5,3751.4,2.27054]
[1753576776710,2.15764,3751.5,3751.4,1.7376]
[1753576776911,2.15764,3751.5,3751.4,2.27054]
[1753576777205,1.6247,3751.5,3751.4,2.27054]
[1753576777416,2.15763,3751.5,3751.4,2.27054]
[1753576777817,2.15763,3751.5,3751.4,0.3058]
[1753576778022,2.15767,3751.2,3751.1,2.27058]
[1753576778216,2.15767,3751.2,3750.9,3.5136]
[1753576778217,1.231,3751.0,3750.9,3.5136]
[1753576778418,22.8847,3751.0,3750.9,3.8129]
[1753576778722,22.8847,3751.0,3750.9,5.47842]
[1753576780829,22.8847,3751.0,3750.9,4.9454]
[1753576781121,22.8847,3751.0,3750.9,3.2078]
[1753576781122,23.4177,3751.0,3750.9,3.2078]
[1753576783027,0.698,3750.6,3750.5,3.2078]
[1753576783229,23.41776,3750.6,3750.5,3.5136]
[1753576783527,23.41776,3750.6,3750.5,3.8129]
[1753576783728,23.41776,3750.6,3750.5,4.9454]
[1753576784424,22.7051,3750.6,3750.5,5.47847]
[1753576784623,0.204,3750.8,3750.7,2.27064]
[1753576784926,0.204,3750.8,3750.5,3.2078]
[1753576784927,3.8699,3751.0,3750.9,2.27062]
[1753576785128,24.6728,3751.0,3750.9,2.27062]
[1753576785425,24.4688,3751.0,3750.9,2.27062]
[1753576785728,3.2078,3751.0,3750.9,2.27062]
[1753576788131,21.465,3751.2,3751.1,1.22549]
[1753576788432,21.465,3751.2,3751.1,2.27059]
[1753576788727,21.9231,3751.2,3751.1,2.27059]
[1753576789322,21.9231,3751.2,3750.8,5.277]
[1753576789323,0.698,3751.0,3750.8,5.5763]
[1753576789526,1.23102,3750.9,3750.8,5.9756]
[1753576789823,0.4581,3750.9,3750.8,7.54763]
[1753576790020,22.3917,3751.2,3751.1,2.27059]
[1753576790221,22.6937,3751.2,3751.1,5.47839]
[1753576790429,1.2531,3751.2,3751.1,5.47839]
[1753576790619,21.464,3751.2,3751.1,5.47839]
[1753576791725,22.2241,3751.2,3751.1,5.47839]
[1753576791923,23.41767,3751.2,3751.1,4.9454]
[1753576792119,23.41767,3751.2,3751.1,3.7201]
[1753576792325,1.23102,3750.9,3750.8,5.5828]
[1753576792627,2.15772,3750.9,3750.8,5.5828]
[1753576792823,23.41772,3750.9,3750.8,5.5828]
[1753576793429,23.41772,3750.9,3750.8,5.277]
[1753576794329,23.41772,3750.9,3750.8,5.5828]
[1753576794525,23.41772,3750.9,3750.8,0.3058]
[1753576795429,23.41772,3750.9,3750.8,1.7376]
[1753576796535,23.23812,3750.9,3750.8,1.7376]
[1753576796730,22.94912,3750.9,3750.8,1.7376]
[1753576797027,23.23812,3750.9,3750.8,1.7376]
[1753576797331,23.41772,3750.9,3750.8,1.7376]
[1753576799534,23.41772,3750.9,3750.8,2.27063]
[1753576799735,1.22397,3751.3,3751.2,1.23277]
[1753576799936,23.21757,3751.3,3751.2,4.9328]
[1753576800330,23.39767,3751.3,3751.2,5.46577]
[1753576800532,23.39767,3751.3,3751.2,1.725]
[1753576801233,1.1604,3751.7,3751.6,1.725]
[1753576801437,1.17718,3751.9,3751.8,0.6998]
[1753576801640,22.0969,3751.9,3751.8,1.725]
[1753576801834,22.3947,3751.9,3751.8,1.725]
[1753576802039,22.8641,3751.9,3751.8,1.725]
[1753576802433,22.8641,3751.9,3751.8,2.25789]
[1753576802640,0.2,3751.9,3751.8,2.25789]
[1753576802841,21.46,3751.9,3751.8,2.25789]
[1753576803140,0.2,3751.9,3751.8,2.25789]
[1753576806742,1.424,3751.9,3751.8,2.25789]
[1753576808942,1.8047,3751.9,3751.8,2.25789]
[1753576810245,2.33757,3751.9,3751.8,2.25789]
[1753576810743,1.8047,3751.9,3751.8,2.25789]